[Event "Titled Tuesday Blitz June 6 Early 2023"]
[White "Ibadov, Dashgyn"]
[Black "Buchenau, Frank"]
[WhiteFideId "24107514"]
[BlackFideId "4604350"]
[WhiteElo "2208"]
[BlackElo "2157"]
[Result "1-0"]
[Round "8"]
[TimeControl "180+2"]
[Date "2023.06.06"]
[WhiteClock "0:00:05"]
[BlackClock "0:00:01"]
[Board "95"]

1. e4 {[%clk 0:03:00]}  e6 {[%clk 0:02:59]} 2. d4 {[%clk 0:02:59]}  d5 {[%clk 0:02:59]} 3. Nc3 {[%clk 0:02:57]}  Nf6 {[%clk 0:02:59]} 4. Bg5 {[%clk 0:02:52]}  dxe4 {[%clk 0:02:58]} 5. Nxe4 {[%clk 0:02:52]}  Be7 {[%clk 0:02:58]} 6. Bxf6 {[%clk 0:02:52]}  gxf6 {[%clk 0:02:57]} 7. Nf3 {[%clk 0:02:53]}  f5 {[%clk 0:02:55]} 8. Nc3 {[%clk 0:02:52]}  a6 {[%clk 0:02:55]} 9. g3 {[%clk 0:02:52]}  b5 {[%clk 0:02:55]} 10. Bg2 {[%clk 0:02:52]}  Bb7 {[%clk 0:02:55]} 11. O-O {[%clk 0:02:51]}  O-O {[%clk 0:02:55]} 12. Ne5 {[%clk 0:02:43]}  Bxg2 {[%clk 0:02:54]} 13. Kxg2 {[%clk 0:02:44]}  c5 {[%clk 0:02:43]} 14. d5 {[%clk 0:02:16]}  b4 {[%clk 0:02:40]} 15. Ne2 {[%clk 0:02:16]}  Qxd5+ {[%clk 0:02:37]} 16. Qxd5 {[%clk 0:02:16]}  exd5 {[%clk 0:02:38]} 17. Rad1 {[%clk 0:02:03]}  d4 {[%clk 0:02:32]} 18. Rd3 {[%clk 0:01:51]}  Bd6 {[%clk 0:02:25]} 19. Nc4 {[%clk 0:01:49]}  Bc7 {[%clk 0:02:25]} 20. Rf3 {[%clk 0:01:49]}  Re8 {[%clk 0:02:20]} 21. Nf4 {[%clk 0:01:49]}  Bxf4 {[%clk 0:02:14]} 22. Rxf4 {[%clk 0:01:50]}  Re2 {[%clk 0:02:05]} 23. Rc1 {[%clk 0:01:50]}  Nd7 {[%clk 0:02:01]} 24. Rxf5 {[%clk 0:01:45]}  Rae8 {[%clk 0:02:00]} 25. Rd5 {[%clk 0:01:35]}  Ne5 {[%clk 0:01:54]} 26. Rxc5 {[%clk 0:01:22]}  Nxc4 {[%clk 0:01:12]} 27. Rxc4 {[%clk 0:01:21]}  Rd2 {[%clk 0:01:10]} 28. Rxb4 {[%clk 0:01:15]}  Ree2 {[%clk 0:01:10]} 29. Rf1 {[%clk 0:01:16]}  Kg7 {[%clk 0:00:39]} 30. Kf3 {[%clk 0:01:15]}  Kf6 {[%clk 0:00:35]} 31. Rxd4 {[%clk 0:01:14]}  Rxc2 {[%clk 0:00:28]} 32. Rf4+ {[%clk 0:01:05]}  Kg7 {[%clk 0:00:27]} 33. Kg2 {[%clk 0:00:59]}  Rxb2 {[%clk 0:00:26]} 34. a4 {[%clk 0:00:45]}  Ra2 {[%clk 0:00:23]} 35. Rc1 {[%clk 0:00:43]}  Re7 {[%clk 0:00:11]} 36. Rc6 {[%clk 0:00:42]}  Ra7 {[%clk 0:00:09]} 37. h4 {[%clk 0:00:40]}  a5 {[%clk 0:00:08]} 38. h5 {[%clk 0:00:40]}  h6 {[%clk 0:00:07]} 39. g4 {[%clk 0:00:21]}  Rb2 {[%clk 0:00:07]} 40. Rc5 {[%clk 0:00:19]}  Rb4 {[%clk 0:00:07]} 41. Rcc4 {[%clk 0:00:16]}  Rxc4 {[%clk 0:00:05]} 42. Rxc4 {[%clk 0:00:15]}  f5 {[%clk 0:00:04]} 43. f3 {[%clk 0:00:09]}  fxg4 {[%clk 0:00:04]} 44. fxg4 {[%clk 0:00:10]}  Rb7 {[%clk 0:00:02]} 45. Kf3 {[%clk 0:00:09]}  Rb3+ {[%clk 0:00:01]} 46. Kf4 {[%clk 0:00:09]}  Rb1 {[%clk 0:00:01]} 47. Rc7+ {[%clk 0:00:05]} 1-0


[Site "https://www.chess.com"]

[Event "Titled Tuesday Blitz June 6 Early 2023"]
[White "Toktomushev, Teimur"]
[Black "Belov, Alexei"]
[WhiteFideId "14176726"]
[BlackFideId "4128206"]
[WhiteElo "2116"]
[BlackElo "2620"]
[Result "0-1"]
[Round "8"]
[TimeControl "180+2"]
[Date "2023.06.06"]
[WhiteClock "0:00:02"]
[BlackClock "0:00:53"]
[Board "96"]

1. d4 {[%clk 0:03:00]}  e6 {[%clk 0:03:00]} 2. c4 {[%clk 0:03:00]}  d5 {[%clk 0:03:00]} 3. Nc3 {[%clk 0:03:00]}  Be7 {[%clk 0:03:00]} 4. Nf3 {[%clk 0:02:55]}  Nf6 {[%clk 0:02:59]} 5. Bf4 {[%clk 0:02:55]}  O-O {[%clk 0:02:59]} 6. e3 {[%clk 0:02:55]}  Nbd7 {[%clk 0:02:58]} 7. Bd3 {[%clk 0:02:37]}  dxc4 {[%clk 0:02:57]} 8. Bxc4 {[%clk 0:02:37]}  a6 {[%clk 0:02:58]} 9. O-O {[%clk 0:02:31]}  b5 {[%clk 0:02:58]} 10. Bd3 {[%clk 0:02:31]}  c5 {[%clk 0:02:55]} 11. Qe2 {[%clk 0:02:03]}  Bb7 {[%clk 0:02:55]} 12. Rac1 {[%clk 0:01:59]}  Rc8 {[%clk 0:02:52]} 13. Rfd1 {[%clk 0:01:58]}  cxd4 {[%clk 0:02:51]} 14. exd4 {[%clk 0:01:52]}  Nb6 {[%clk 0:02:51]} 15. Ne5 {[%clk 0:01:42]}  Nbd5 {[%clk 0:02:43]} 16. Bg3 {[%clk 0:01:40]}  Qa5 {[%clk 0:02:30]} 17. Ne4 {[%clk 0:00:57]}  Nxe4 {[%clk 0:02:01]} 18. Qxe4 {[%clk 0:00:42]}  g6 {[%clk 0:02:01]} 19. a3 {[%clk 0:00:27]}  Rxc1 {[%clk 0:01:58]} 20. Rxc1 {[%clk 0:00:27]}  Qd2 {[%clk 0:01:58]} 21. Rb1 {[%clk 0:00:08]}  Rc8 {[%clk 0:01:56]} 22. h4 {[%clk 0:00:05]}  Rc7 {[%clk 0:01:36]} 23. Qg4 {[%clk 0:00:02]}  Nf6 {[%clk 0:01:18]} 24. Qh3 {[%clk 0:00:02]}  Rc1+ {[%clk 0:01:12]} 25. Rxc1 {[%clk 0:00:02]}  Qxc1+ {[%clk 0:01:13]} 26. Kh2 {[%clk 0:00:03]}  Qxb2 {[%clk 0:01:10]} 27. h5 {[%clk 0:00:02]}  Nxh5 {[%clk 0:01:08]} 28. Bh4 {[%clk 0:00:02]}  Bd6 {[%clk 0:01:03]} 29. Qe3 {[%clk 0:00:01]}  f6 {[%clk 0:00:56]} 30. g4 {[%clk 0:00:01]}  fxe5 {[%clk 0:00:56]} 31. d5 {[%clk 0:00:01]}  e4+ {[%clk 0:00:54]} 32. Kg2 {[%clk 0:00:02]}  Nf4+ {[%clk 0:00:53]} 0-1


[Site "https://www.chess.com"]

[Event "Titled Tuesday Blitz June 6 Early 2023"]
[White "Goroshkov, Maksym"]
[Black "Fernandez Garcia, Gumersindo"]
[WhiteFideId "14142716"]
[BlackFideId "24516740"]
[WhiteElo "2322"]
[BlackElo "2093"]
[Result "1-0"]
[Round "8"]
[TimeControl "180+2"]
[Date "2023.06.06"]
[WhiteClock "0:01:32"]
[BlackClock "0:00:05"]
[Board "98"]

1. e4 {[%clk 0:03:00]}  c5 {[%clk 0:02:58]} 2. d4 {[%clk 0:03:00]}  cxd4 {[%clk 0:02:58]} 3. c3 {[%clk 0:03:00]}  g6 {[%clk 0:02:56]} 4. cxd4 {[%clk 0:03:00]}  d5 {[%clk 0:02:56]} 5. exd5 {[%clk 0:03:00]}  Nf6 {[%clk 0:02:56]} 6. Nc3 {[%clk 0:02:59]}  Nxd5 {[%clk 0:02:54]} 7. Bc4 {[%clk 0:02:59]}  Nb6 {[%clk 0:02:50]} 8. Bb3 {[%clk 0:02:59]}  Bg7 {[%clk 0:02:51]} 9. Nf3 {[%clk 0:02:59]}  O-O {[%clk 0:02:52]} 10. Be3 {[%clk 0:02:59]}  Nc6 {[%clk 0:02:51]} 11. h3 {[%clk 0:02:56]}  e5 {[%clk 0:02:38]} 12. d5 {[%clk 0:02:52]}  Nd4 {[%clk 0:02:37]} 13. Nxd4 {[%clk 0:02:50]}  exd4 {[%clk 0:02:37]} 14. Bxd4 {[%clk 0:02:50]}  Re8+ {[%clk 0:02:17]} 15. Kf1 {[%clk 0:02:50]}  Bh6 {[%clk 0:02:02]} 16. Qf3 {[%clk 0:02:49]}  Bf5 {[%clk 0:01:55]} 17. g4 {[%clk 0:02:47]}  Bd7 {[%clk 0:01:50]} 18. Ne4 {[%clk 0:02:46]}  Bb5+ {[%clk 0:01:45]} 19. Kg2 {[%clk 0:02:44]}  Nd7 {[%clk 0:01:46]} 20. d6 {[%clk 0:02:22]}  Rf8 {[%clk 0:01:27]} 21. Bd5 {[%clk 0:02:00]}  Bg7 {[%clk 0:01:09]} 22. Bxg7 {[%clk 0:01:59]}  Kxg7 {[%clk 0:01:10]} 23. h4 {[%clk 0:01:57]}  Nf6 {[%clk 0:01:03]} 24. Qc3 {[%clk 0:01:53]}  Rc8 {[%clk 0:00:23]} 25. Qd4 {[%clk 0:01:51]}  Bc6 {[%clk 0:00:11]} 26. g5 {[%clk 0:01:48]}  Bxd5 {[%clk 0:00:11]} 27. gxf6+ {[%clk 0:01:48]}  Kg8 {[%clk 0:00:12]} 28. Qxd5 {[%clk 0:01:48]}  Re8 {[%clk 0:00:12]} 29. Rhe1 {[%clk 0:01:46]}  Qd7 {[%clk 0:00:10]} 30. Ng3 {[%clk 0:01:41]}  Red8 {[%clk 0:00:05]} 31. Kh2 {[%clk 0:01:34]}  Rc6 {[%clk 0:00:05]} 32. Rad1 {[%clk 0:01:32]}  Rxd6 {[%clk 0:00:05]} 33. Qxd6 {[%clk 0:01:32]} 1-0


[Site "https://www.chess.com"]

[Event "Titled Tuesday Blitz June 6 Early 2023"]
[White "FunnyDuck66"]
[Black "Novikov, Evgenij"]
[BlackFideId "4125380"]
[WhiteElo "2424"]
[BlackElo "2242"]
[Result "1-0"]
[Round "8"]
[TimeControl "180+2"]
[Date "2023.06.06"]
[WhiteClock "0:00:36"]
[BlackClock "0:00:41"]
[Board "99"]

1. d4 {[%clk 0:02:57]}  Nf6 {[%clk 0:02:58]} 2. Nf3 {[%clk 0:02:57]}  b6 {[%clk 0:02:57]} 3. Bf4 {[%clk 0:02:52]}  Bb7 {[%clk 0:02:58]} 4. Nbd2 {[%clk 0:02:51]}  d6 {[%clk 0:02:58]} 5. e3 {[%clk 0:02:49]}  Nbd7 {[%clk 0:02:59]} 6. Bd3 {[%clk 0:02:49]}  Nh5 {[%clk 0:02:54]} 7. Bg3 {[%clk 0:02:48]}  g6 {[%clk 0:02:50]} 8. c3 {[%clk 0:02:47]}  Bg7 {[%clk 0:02:48]} 9. e4 {[%clk 0:02:46]}  O-O {[%clk 0:02:41]} 10. O-O {[%clk 0:02:43]}  Nxg3 {[%clk 0:02:40]} 11. hxg3 {[%clk 0:02:44]}  c5 {[%clk 0:02:36]} 12. Qe2 {[%clk 0:02:38]}  Qc7 {[%clk 0:02:33]} 13. Nc4 {[%clk 0:02:33]}  e6 {[%clk 0:02:13]} 14. Ne3 {[%clk 0:02:25]}  Nf6 {[%clk 0:02:07]} 15. e5 {[%clk 0:02:01]}  Nd5 {[%clk 0:01:58]} 16. Nc4 {[%clk 0:01:58]}  dxe5 {[%clk 0:01:55]} 17. dxe5 {[%clk 0:01:56]}  Rfd8 {[%clk 0:01:42]} 18. Nd6 {[%clk 0:01:49]}  Bc6 {[%clk 0:01:40]} 19. Rfe1 {[%clk 0:01:45]}  Ne7 {[%clk 0:01:35]} 20. Rad1 {[%clk 0:01:40]}  Rd7 {[%clk 0:01:30]} 21. Bc4 {[%clk 0:01:34]}  Rad8 {[%clk 0:01:21]} 22. Ng5 {[%clk 0:01:04]}  Nd5 {[%clk 0:01:15]} 23. Ndxf7 {[%clk 0:00:44]}  Rxf7 {[%clk 0:01:15]} 24. Nxe6 {[%clk 0:00:45]}  Qe7 {[%clk 0:00:58]} 25. Nxd8 {[%clk 0:00:44]}  Qxd8 {[%clk 0:00:59]} 26. Bxd5 {[%clk 0:00:44]}  Bxd5 {[%clk 0:00:58]} 27. c4 {[%clk 0:00:45]}  Rd7 {[%clk 0:00:55]} 28. cxd5 {[%clk 0:00:44]}  Rxd5 {[%clk 0:00:55]} 29. Qc4 {[%clk 0:00:43]}  Kh8 {[%clk 0:00:44]} 30. Qxd5 {[%clk 0:00:42]}  Qf8 {[%clk 0:00:44]} 31. Qd8 {[%clk 0:00:42]}  Kg8 {[%clk 0:00:44]} 32. e6 {[%clk 0:00:41]}  Bf6 {[%clk 0:00:43]} 33. e7 {[%clk 0:00:39]}  Bxe7 {[%clk 0:00:44]} 34. Rxe7 {[%clk 0:00:38]}  h5 {[%clk 0:00:43]} 35. Rb7 {[%clk 0:00:35]}  g5 {[%clk 0:00:40]} 36. Qxf8+ {[%clk 0:00:35]}  Kxf8 {[%clk 0:00:41]} 37. Rd8# {[%clk 0:00:36]} 1-0


[Site "https://www.chess.com"]

[Event "Titled Tuesday Blitz June 6 Early 2023"]
[White "Manukian, Artak"]
[Black "Skliarov, Viktor"]
[WhiteFideId "13301373"]
[BlackFideId "14106736"]
[WhiteElo "2130"]
[BlackElo "2317"]
[Result "0-1"]
[Round "8"]
[TimeControl "180+2"]
[Date "2023.06.06"]
[WhiteClock "0:00:04"]
[BlackClock "0:00:12"]
[Board "100"]

1. e4 {[%clk 0:03:00]}  c5 {[%clk 0:02:58]} 2. Nf3 {[%clk 0:02:59]}  Nc6 {[%clk 0:02:56]} 3. c3 {[%clk 0:02:59]}  Nf6 {[%clk 0:02:55]} 4. e5 {[%clk 0:02:59]}  Nd5 {[%clk 0:02:54]} 5. d4 {[%clk 0:03:00]}  cxd4 {[%clk 0:02:51]} 6. cxd4 {[%clk 0:03:01]}  d6 {[%clk 0:02:51]} 7. Nc3 {[%clk 0:03:01]}  e6 {[%clk 0:02:49]} 8. Bd3 {[%clk 0:03:00]}  Nxc3 {[%clk 0:02:48]} 9. bxc3 {[%clk 0:03:00]}  dxe5 {[%clk 0:02:48]} 10. dxe5 {[%clk 0:03:00]}  Qc7 {[%clk 0:02:47]} 11. Qe2 {[%clk 0:02:56]}  b6 {[%clk 0:02:33]} 12. O-O {[%clk 0:02:54]}  Bb7 {[%clk 0:02:32]} 13. a4 {[%clk 0:02:23]}  Bc5 {[%clk 0:02:30]} 14. Re1 {[%clk 0:02:17]}  h6 {[%clk 0:02:18]} 15. Ba3 {[%clk 0:02:03]}  Bxa3 {[%clk 0:02:05]} 16. Rxa3 {[%clk 0:02:04]}  O-O-O {[%clk 0:02:05]} 17. Ba6 {[%clk 0:01:49]}  Kb8 {[%clk 0:01:59]} 18. Bxb7 {[%clk 0:01:48]}  Qxb7 {[%clk 0:01:47]} 19. Rb1 {[%clk 0:01:39]}  Rd5 {[%clk 0:01:44]} 20. c4 {[%clk 0:01:31]}  Rc5 {[%clk 0:01:20]} 21. Rb5 {[%clk 0:01:30]}  Qe7 {[%clk 0:01:11]} 22. Rab3 {[%clk 0:01:21]}  Rd8 {[%clk 0:01:02]} 23. h4 {[%clk 0:01:16]}  Nd4 {[%clk 0:00:50]} 24. Nxd4 {[%clk 0:01:13]}  Rxd4 {[%clk 0:00:51]} 25. a5 {[%clk 0:01:00]}  Rdxc4 {[%clk 0:00:35]} 26. Rxc5 {[%clk 0:00:54]}  Qxc5 {[%clk 0:00:29]} 27. axb6 {[%clk 0:00:54]}  Rc1+ {[%clk 0:00:29]} 28. Kh2 {[%clk 0:00:54]}  axb6 {[%clk 0:00:29]} 29. Rf3 {[%clk 0:00:20]}  Qd4 {[%clk 0:00:25]} 30. g3 {[%clk 0:00:18]}  Qd5 {[%clk 0:00:21]} 31. Qd3 {[%clk 0:00:15]}  Qxd3 {[%clk 0:00:20]} 32. Rxd3 {[%clk 0:00:15]}  Rc7 {[%clk 0:00:18]} 33. f4 {[%clk 0:00:14]}  h5 {[%clk 0:00:18]} 34. g4 {[%clk 0:00:13]}  hxg4 {[%clk 0:00:16]} 35. Kg3 {[%clk 0:00:14]}  b5 {[%clk 0:00:16]} 36. Kxg4 {[%clk 0:00:14]}  b4 {[%clk 0:00:15]} 37. Rb3 {[%clk 0:00:13]}  Rb7 {[%clk 0:00:16]} 38. f5 {[%clk 0:00:12]}  exf5+ {[%clk 0:00:14]} 39. Kxf5 {[%clk 0:00:12]}  Ka7 {[%clk 0:00:15]} 40. e6 {[%clk 0:00:09]}  fxe6+ {[%clk 0:00:15]} 41. Kxe6 {[%clk 0:00:10]}  Ka6 {[%clk 0:00:15]} 42. Rb1 {[%clk 0:00:09]}  Kb5 {[%clk 0:00:14]} 43. h5 {[%clk 0:00:08]}  Kc4 {[%clk 0:00:12]} 44. Rc1+ {[%clk 0:00:04]}  Kd3 {[%clk 0:00:12]} 0-1


[Site "https://www.chess.com"]

[Event "Titled Tuesday Blitz June 6 Early 2023"]
[White "Tarasova, Viktoriya"]
[Black "Kochiev, Ivan"]
[WhiteFideId "4175840"]
[BlackFideId "2917890"]
[WhiteElo "2182"]
[BlackElo "2287"]
[Result "0-1"]
[Round "8"]
[TimeControl "180+2"]
[Date "2023.06.06"]
[WhiteClock "0:00:21"]
[BlackClock "0:00:02"]
[Board "102"]

1. d4 {[%clk 0:02:58]}  Nf6 {[%clk 0:02:48]} 2. c4 {[%clk 0:02:59]}  e6 {[%clk 0:02:48]} 3. Nc3 {[%clk 0:02:59]}  c5 {[%clk 0:02:49]} 4. d5 {[%clk 0:02:59]}  exd5 {[%clk 0:02:50]} 5. cxd5 {[%clk 0:02:59]}  d6 {[%clk 0:02:51]} 6. Nf3 {[%clk 0:02:59]}  g6 {[%clk 0:02:52]} 7. Bf4 {[%clk 0:03:00]}  a6 {[%clk 0:02:52]} 8. a4 {[%clk 0:03:00]}  Qe7 {[%clk 0:02:51]} 9. h3 {[%clk 0:02:56]}  Bg7 {[%clk 0:02:51]} 10. e3 {[%clk 0:02:57]}  O-O {[%clk 0:02:50]} 11. Nd2 {[%clk 0:02:55]}  Nbd7 {[%clk 0:02:47]} 12. Be2 {[%clk 0:02:55]}  Ne8 {[%clk 0:02:46]} 13. O-O {[%clk 0:02:54]}  Nc7 {[%clk 0:02:45]} 14. Nc4 {[%clk 0:02:43]}  Ne5 {[%clk 0:02:46]} 15. Nb6 {[%clk 0:02:43]}  Rb8 {[%clk 0:02:45]} 16. a5 {[%clk 0:02:43]}  f5 {[%clk 0:02:37]} 17. Re1 {[%clk 0:02:42]}  Bd7 {[%clk 0:02:31]} 18. Bf1 {[%clk 0:02:39]}  Bb5 {[%clk 0:02:25]} 19. Bh2 {[%clk 0:02:26]}  Nd7 {[%clk 0:02:24]} 20. e4 {[%clk 0:02:14]}  f4 {[%clk 0:02:12]} 21. f3 {[%clk 0:02:08]}  Bd4+ {[%clk 0:01:57]} 22. Kh1 {[%clk 0:02:08]}  Bxf1 {[%clk 0:01:57]} 23. Rxf1 {[%clk 0:02:07]}  Nxb6 {[%clk 0:01:58]} 24. axb6 {[%clk 0:02:07]}  Na8 {[%clk 0:01:59]} 25. Na4 {[%clk 0:02:02]}  g5 {[%clk 0:01:20]} 26. Rc1 {[%clk 0:01:51]}  h5 {[%clk 0:01:14]} 27. b4 {[%clk 0:01:46]}  Be3 {[%clk 0:01:15]} 28. Rc4 {[%clk 0:01:46]}  cxb4 {[%clk 0:01:05]} 29. Bg1 {[%clk 0:01:46]}  Rfc8 {[%clk 0:00:48]} 30. Rxb4 {[%clk 0:01:38]}  Rc1 {[%clk 0:00:39]} 31. Qe2 {[%clk 0:01:38]}  Rbc8 {[%clk 0:00:29]} 32. Bxe3 {[%clk 0:01:29]}  fxe3 {[%clk 0:00:29]} 33. Rb1 {[%clk 0:01:29]}  Rxf1+ {[%clk 0:00:22]} 34. Rxf1 {[%clk 0:01:29]}  Qe8 {[%clk 0:00:21]} 35. Qxe3 {[%clk 0:01:21]}  Rc2 {[%clk 0:00:09]} 36. Qxg5+ {[%clk 0:01:20]}  Kh7 {[%clk 0:00:09]} 37. Qf5+ {[%clk 0:01:19]}  Kh6 {[%clk 0:00:06]} 38. Ra1 {[%clk 0:00:44]}  Qg8 {[%clk 0:00:04]} 39. g4 {[%clk 0:00:40]}  hxg4 {[%clk 0:00:04]} 40. fxg4 {[%clk 0:00:39]}  Qh8 {[%clk 0:00:03]} 41. Rf1 {[%clk 0:00:36]}  Qe5 {[%clk 0:00:02]} 42. Qf8+ {[%clk 0:00:35]}  Kg5 {[%clk 0:00:02]} 43. Rf5+ {[%clk 0:00:34]}  Kh4 {[%clk 0:00:02]} 44. Rxe5 {[%clk 0:00:31]}  Kg3 {[%clk 0:00:02]} 45. Qxa8 {[%clk 0:00:21]}  Rc1# {[%clk 0:00:02]} 0-1


[Site "https://www.chess.com"]

[Event "Titled Tuesday Blitz June 6 Early 2023"]
[White "Barbot, Pierre"]
[Black "Degenbaev, Aziz"]
[WhiteFideId "663727"]
[BlackFideId "13802640"]
[WhiteElo "2431"]
[BlackElo "2152"]
[Result "0-1"]
[Round "8"]
[TimeControl "180+2"]
[Date "2023.06.06"]
[WhiteClock "0:00:01"]
[BlackClock "0:01:59"]
[Board "103"]

1. d4 {[%clk 0:03:00]}  Nf6 {[%clk 0:03:00]} 2. Nf3 {[%clk 0:03:01]}  g6 {[%clk 0:03:00]} 3. Bf4 {[%clk 0:03:01]}  Bg7 {[%clk 0:03:00]} 4. e3 {[%clk 0:03:00]}  O-O {[%clk 0:03:01]} 5. h3 {[%clk 0:03:00]}  d6 {[%clk 0:03:01]} 6. Be2 {[%clk 0:02:53]}  b6 {[%clk 0:03:02]} 7. O-O {[%clk 0:02:53]}  Bb7 {[%clk 0:03:02]} 8. Bh2 {[%clk 0:02:53]}  Nbd7 {[%clk 0:02:51]} 9. c4 {[%clk 0:02:53]}  Ne4 {[%clk 0:02:51]} 10. Qc2 {[%clk 0:02:50]}  e5 {[%clk 0:02:51]} 11. Nc3 {[%clk 0:02:44]}  Nxc3 {[%clk 0:02:48]} 12. Qxc3 {[%clk 0:02:38]}  Re8 {[%clk 0:02:46]} 13. Rfd1 {[%clk 0:02:34]}  exd4 {[%clk 0:02:44]} 14. Qa3 {[%clk 0:01:43]}  dxe3 {[%clk 0:02:42]} 15. fxe3 {[%clk 0:01:37]}  Qe7 {[%clk 0:02:29]} 16. Bf4 {[%clk 0:01:18]}  h6 {[%clk 0:02:29]} 17. h4 {[%clk 0:01:17]}  a5 {[%clk 0:02:22]} 18. g4 {[%clk 0:00:32]}  Nf6 {[%clk 0:02:14]} 19. g5 {[%clk 0:00:32]}  Nh5 {[%clk 0:02:14]} 20. Re1 {[%clk 0:00:12]}  Nxf4 {[%clk 0:02:08]} 21. exf4 {[%clk 0:00:13]}  hxg5 {[%clk 0:02:05]} 22. hxg5 {[%clk 0:00:13]}  Qe4 {[%clk 0:02:06]} 23. Kf2 {[%clk 0:00:12]}  Bd4+ {[%clk 0:02:05]} 24. Kg3 {[%clk 0:00:13]}  Be3 {[%clk 0:02:03]} 25. Qd3 {[%clk 0:00:02]}  Qxf4+ {[%clk 0:02:03]} 26. Kg2 {[%clk 0:00:03]}  Qg4+ {[%clk 0:02:04]} 27. Kh2 {[%clk 0:00:02]}  Bxf3 {[%clk 0:02:00]} 28. Bxf3 {[%clk 0:00:02]}  Bf4+ {[%clk 0:01:58]} 29. Kh1 {[%clk 0:00:01]}  Qh3+ {[%clk 0:01:59]} 30. Kg1 {[%clk 0:00:01]}  Bh2+ {[%clk 0:01:57]} 31. Kf2 {[%clk 0:00:02]}  Bg3+ {[%clk 0:01:58]} 32. Kg1 {[%clk 0:00:01]}  Qh2+ {[%clk 0:01:59]} 33. Kf1 {[%clk 0:00:01]}  Qf2# {[%clk 0:01:59]} 0-1


[Site "https://www.chess.com"]

[Event "Titled Tuesday Blitz June 6 Early 2023"]
[White "Diaz Rosas, Julio Cesar"]
[Black "Schuh, Karsten"]
[WhiteFideId "5105099"]
[BlackFideId "4637950"]
[WhiteElo "2284"]
[BlackElo "2177"]
[Result "1-0"]
[Round "8"]
[TimeControl "180+2"]
[Date "2023.06.06"]
[WhiteClock "0:00:22"]
[BlackClock "0:00:07"]
[Board "104"]

1. e4 {[%clk 0:03:00]}  c5 {[%clk 0:03:00]} 2. Nf3 {[%clk 0:02:51]}  Nc6 {[%clk 0:03:00]} 3. Bc4 {[%clk 0:02:51]}  e6 {[%clk 0:02:59]} 4. O-O {[%clk 0:02:48]}  a6 {[%clk 0:02:58]} 5. d4 {[%clk 0:02:46]}  cxd4 {[%clk 0:02:57]} 6. Nxd4 {[%clk 0:02:47]}  Qc7 {[%clk 0:02:56]} 7. Nxc6 {[%clk 0:02:44]}  bxc6 {[%clk 0:02:54]} 8. Qf3 {[%clk 0:02:36]}  Nf6 {[%clk 0:02:53]} 9. Bf4 {[%clk 0:02:34]}  e5 {[%clk 0:02:47]} 10. Bg5 {[%clk 0:02:32]}  Be7 {[%clk 0:02:47]} 11. Nc3 {[%clk 0:02:31]}  O-O {[%clk 0:02:42]} 12. h3 {[%clk 0:02:31]}  d6 {[%clk 0:02:38]} 13. Rad1 {[%clk 0:02:28]}  Rb8 {[%clk 0:02:33]} 14. b3 {[%clk 0:02:23]}  Be6 {[%clk 0:02:25]} 15. Qe2 {[%clk 0:01:56]}  Qa5 {[%clk 0:02:14]} 16. Bxe6 {[%clk 0:01:44]}  fxe6 {[%clk 0:02:05]} 17. Qc4 {[%clk 0:01:39]}  Kf7 {[%clk 0:01:35]} 18. Bxf6 {[%clk 0:01:28]}  gxf6 {[%clk 0:01:32]} 19. Na4 {[%clk 0:01:15]}  Rbc8 {[%clk 0:01:25]} 20. f4 {[%clk 0:01:06]}  d5 {[%clk 0:01:25]} 21. Qe2 {[%clk 0:01:05]}  exf4 {[%clk 0:01:05]} 22. Qh5+ {[%clk 0:01:03]}  Kg8 {[%clk 0:00:59]} 23. Qg4+ {[%clk 0:01:01]}  Kh8 {[%clk 0:00:59]} 24. Qxe6 {[%clk 0:01:01]}  Bc5+ {[%clk 0:00:50]} 25. Kh1 {[%clk 0:00:59]}  Rce8 {[%clk 0:00:50]} 26. Qxc6 {[%clk 0:00:58]}  Be3 {[%clk 0:00:50]} 27. exd5 {[%clk 0:00:47]}  Rc8 {[%clk 0:00:35]} 28. Qd6 {[%clk 0:00:42]}  Rcd8 {[%clk 0:00:33]} 29. Qe6 {[%clk 0:00:40]}  Rde8 {[%clk 0:00:17]} 30. Qf5 {[%clk 0:00:39]}  Qb5 {[%clk 0:00:16]} 31. c4 {[%clk 0:00:35]}  Qb4 {[%clk 0:00:16]} 32. d6 {[%clk 0:00:33]}  Rd8 {[%clk 0:00:15]} 33. d7 {[%clk 0:00:33]}  Qb7 {[%clk 0:00:12]} 34. Qd5 {[%clk 0:00:31]}  Qb4 {[%clk 0:00:10]} 35. c5 {[%clk 0:00:31]}  Qa3 {[%clk 0:00:09]} 36. c6 {[%clk 0:00:29]}  Qxa2 {[%clk 0:00:09]} 37. c7 {[%clk 0:00:28]}  Rxd7 {[%clk 0:00:08]} 38. Qxd7 {[%clk 0:00:28]}  Rg8 {[%clk 0:00:09]} 39. Qd5 {[%clk 0:00:24]}  f3 {[%clk 0:00:07]} 40. Qxg8+ {[%clk 0:00:22]} 1-0


[Site "https://www.chess.com"]